Cogmind - Beta 14 @@@ ROGUE MODE // 2024.11.22 @ 00:54:01 // Winter2019/RPGLIKE Player: admiral_len Result: Destroyed by G-47 Trooper with Particle Gun Performance ------------- Evolutions (2) 1000 Regions Visited (6) 1200 Robots Destroyed (47) 235 Value Destroyed (1098) 1098 Prototype IDs (1) 20 Alien Tech Used (0) 0 Bonus (208) 208 TOTAL SCORE: 3761 Bonus ------- High Alert Combat Kills 8 Entered Garrisons 200 Cogmind --------- Core Integrity 0/1300 Matter 335/400 Energy 158/160 System Corruption 0% Temperature Cool (27) Movement Walking (120) Location -8/Garrison Parts ------- > --- POWER (1) -------- Light Nuclear Core > --- PROPULSION (2) --- Aluminum Leg > --- UTILITY (1) ------ Targeting Computer > --- WEAPON (3) ------- Light Assault Rifle Enhanced Autogun > --- INVENTORY (1) ---- Faulty Enhanced Autogun Peak State ------------ > --- POWER ------------ Ion Engine > --- PROPULSION ------- Aluminum Leg Aluminum Leg > --- UTILITY ---------- (None) > --- WEAPON ----------- Enhanced Autogun Enhanced Autogun > --- INVENTORY -------- (None) [Rating: 11] Favorites ----------- Power Ion Engine Engine Ion Engine Power Core Light Nuclear Core Propulsion Aluminum Leg Leg Aluminum Leg Utility Hacking Suite Processor Targeting Computer Hackware Hacking Suite Weapon Light Assault Rifle Ballistic Gun Light Assault Rifle Launcher Rocket Launcher Build | -11 -10 -10 -10 -9 -8 -8 ------- Run | Yrd Mat Min Exi Min Mat Gar Slots Evolved 3 | 2 . . . . . 1 Power . | . . . . . . . Propulsion 1 | 1 . . . . . . Utility . | . . . . . . . Weapon 2 | 1 . . . . . 1 Parts Attached 16 | 5 3 . . 1 4 3 Power 2 | 1 . . . . . 1 Engine 1 | 1 . . . . . . Core 1 | . . . . . . 1 Reactor . | . . . . . . . Propulsion 6 | 2 2 . . . . 2 Treads . | . . . . . . . Leg 6 | 2 2 . . . . 2 Wheel . | . . . . . . . Hover . | . . . . . . . Flight . | . . . . . . . Utility 2 | . 1 . . . 1 . Device . | . . . . . . . Storage . | . . . . . . . Processor 1 | . . . . . 1 . Hackware 1 | . 1 . . . . . Protection . | . . . . . . . Artifact . | . . . . . . . Weapon 6 | 2 . . . 1 3 . Energy Gun . | . . . . . . . Energy Cannon . | . . . . . . . Ballistic Gun 5 | 2 . . . . 3 . Ballistic Cannon . | . . . . . . . Launcher 1 | . . . . 1 . . Special Weapon . | . . . . . . . Impact Weapon . | . . . . . . . Slashing Weapon . | . . . . . . . Piercing Weapon . | . . . . . . . Special Melee Weapon . | . . . . . . . Unidentified Prototypes 1 | . . . . . 1 . Parts Lost 1 | . . . . 1 . . Power . | . . . . . . . Propulsion . | . . . . . . . Utility 1 | . . . . 1 . . Weapon . | . . . . . . . Highest Loss Streak 1 | . . . . 1 . . To Critical Strikes . | . . . . . . . Average Slot Usage (%) 96 | . 99 100 100 94 92 83 Engine 14 | . 16 16 16 16 16 2 Core 1 | . . . . . . 11 Leg 32 | . 33 33 33 33 33 26 Processor 2 | . . . . . 9 14 Hackware 12 | . 15 16 16 11 . . Ballistic Gun 30 | . 33 33 33 27 27 28 Launcher 1 | . . . . 4 4 . Peak Build Rating 11 | 5 8 8 8 8 11 11 Average Rating 8 | 4 7 8 8 7 8 10 On Entrance 6 | . 5 8 8 8 6 9 Naked Turns . | . . . . . . . Heaviest Build 10 | 8 8 8 8 10 10 9 Greatest Support 20 | 20 20 20 20 20 20 20 Greatest Overweight (x) . | . . . . . . . Average Overweight (x) . | . . . . . . . Largest Inventory Capacity 1 | . . . . 1 1 1 Average Capacity . | . . . . . 1 1 Most Carried 1 | . . . . 1 1 1 Average Carried . | . . . . . . 1 Final Capacity 1 | . . . . 1 1 1 Final Carried 1 | . . . . . 1 1 Class Distribution -------------------- 82% | Hacker-Mutant 17% | Mutant Dominant Class ---------------- Hacker-Mutant | -10/Materials Hacker-Mutant | -10/Mines Hacker-Mutant | -10/Exiles Hacker-Mutant | -9/Mines Hacker-Mutant | -8/Materials Hacker-Mutant | -8/Garrison Resources | -11 -10 -10 -10 -9 -8 -8 ----------- Run | Yrd Mat Min Exi Min Mat Gar Matter Collected 1079 | 246 315 115 . 239 35 129 Remotely . | . . . . . . . Salvage Created 1191 | . 413 248 . 120 48 362 Parts 94 | . 41 22 . 10 13 8 Haulers Intercepted 1 | . . . . . 1 . Recyclers Shooed 2 | . 1 1 . . . . Parts Field Recycled . | . . . . . . . Retrieved Matter . | . . . . . . . Parts Self-Destructed . | . . . . . . . Prevented . | . . . . . . . Kills | -11 -10 -10 -10 -9 -8 -8 ------- Run | Yrd Mat Min Exi Min Mat Gar Combat Hostiles Destroyed 47 | . 17 9 . 12 4 5 Guns 37 | . 17 9 . 6 . 5 AOE 10 | . . . . 6 4 . Classes Destroyed 12 | . 6 1 . 4 1 . Worker 1 | . 1 . . . . . Tunneler 1 | . . . . 1 . . Hauler 1 | . . . . . 1 . Recycler 1 | . 1 . . . . . Operator 1 | . 1 . . . . . Watcher 1 | . 1 . . . . . Swarmer 22 | . 9 6 . 3 4 . Grunt 15 | . 8 2 . 1 . 4 Duelist 2 | . . . . 1 . 1 Sentry 1 | . . 1 . . . . Demolisher 1 | . . . . 1 . . Assembled 6 | . . . . 6 . . Best Kill Streak 8 | . 7 3 . 8 5 2 Combat Bots Only 7 | . 6 3 . 7 4 2 Max Kills in Single Turn 3 | . 2 2 . 1 3 1 Gunslinging 1 | . 1 1 . . . . Exploded 2 | . . . . 1 2 . Melee . | . . . . . . . Uniques/NPCs Destroyed . | . . . . . . . Combat | -11 -10 -10 -10 -9 -8 -8 -------- Run | Yrd Mat Min Exi Min Mat Gar Hostile Shots Fired 205 | . 88 39 . 43 6 29 Missed 45 | . 26 9 . 6 . 4 Damage Taken 2309 | . 624 313 . 904 78 390 Core 1874 | . 510 257 . 722 62 323 Absorbed by Shields . | . . . . . . . Redirected to Core 1442 | . 367 180 . 624 54 217 Ignored by Resistances 154 | . 9 30 . 82 10 23 Core Remaining (%) 56 | 100 . . . 12 . . Volleys Fired 124 | . 46 26 . 29 5 18 Largest 2 | . 2 2 . 2 2 2 Hottest 53 | . 40 40 . 53 53 45 Shots Fired 244 | . 92 52 . 54 10 36 Gun 228 | . 92 52 . 41 7 36 Cannon . | . . . . . . . Launcher 16 | . . . . 13 3 . Special . | . . . . . . . Kinetic 228 | . 92 52 . 41 7 36 Thermal . | . . . . . . . Explosive 16 | . . . . 13 3 . Electromagnetic . | . . . . . . . Robot Hit Streak 17 | . 10 13 . 5 5 17 Robot Miss Streak 6 | . 3 3 . 6 1 2 Penetration Max . | . . . . . . . Secondary Targets 12 | . 6 4 . . . 2 Max Gunslinging Chain 1 | . 1 1 . . . 1 Shots Hit Robots 160 | . 63 38 . 23 5 31 Core Hits 91 | . 33 16 . 24 6 12 Critical Kills 1 | . . . . . . 1 Critical Parts Destroyed 1 | . . 1 . . . . Critical Strikes 2 | . . 1 . . . 1 Destroy 2 | . . 1 . . . 1 Melee Attacks . | . . . . . . . Impact . | . . . . . . . Slashing . | . . . . . . . Piercing . | . . . . . . . Sneak Attacks . | . . . . . . . Combat Hostiles . | . . . . . . . Follow-up Attacks . | . . . . . . . Damage Inflicted 2448 | . 702 416 . 661 263 406 Guns 1734 | . 694 412 . 175 47 406 Cannons . | . . . . . . . Explosions 702 | . . . . 486 216 . Melee . | . . . . . . . Ramming 12 | . 8 4 . . . . Kinetic 1734 | . 694 412 . 175 47 406 Thermal 131 | . . . . 131 . . Explosive 571 | . . . . 355 216 . Electromagnetic . | . . . . . . . Impact . | . . . . . . . Slashing . | . . . . . . . Piercing . | . . . . . . . Highest Corruption 3 | . 3 3 3 3 . . Average Corruption 2 | . 2 3 3 3 . . Corruption Purged . | . . . . . . . Corruption Blocked . | . . . . . . . Effects 31 | . 3 10 5 13 . . Message Errors 6 | . . 2 1 3 . . Matter Fused 9 | . 1 1 3 4 . . Heat Flow Errors 2 | . 1 . . 1 . . Energy Discharges 4 | . . 3 . 1 . . Data Loss (minor) 5 | . 1 3 . 1 . . Data Loss (major) 2 | . . 1 . 1 . . Misfires 2 | . . . . 2 . . Alerts 1 | . . . 1 . . . Overload Shots . | . . . . . . . Overflow Damage 67 | . . . . 53 14 . Projectiles . | . . . . . . . Explosions 67 | . . . . 53 14 . Melee . | . . . . . . . Knockbacks . | . . . . . . . Impact . | . . . . . . . Kinetic . | . . . . . . . Secondary . | . . . . . . . Self-Inflicted Damage 204 | . . . . 176 28 . Shots 7 | . . . . 6 1 . Rammed . | . . . . . . . Targets Rammed 4 | . 3 1 . . . . Kicked 4 | . 3 1 . . . . Crushed . | . . . . . . . Highest Temperature 264 | . 264 9 . 175 . . Average Temperature 50 | . 47 9 . 103 . . Received Heat Transfer 593 | . 231 117 . 20 . 225 Siege Activations . | . . . . . . . Robots Corrupted . | . . . . . . . Combat Hostiles . | . . . . . . . Parts Fried . | . . . . . . . Impact Corruptions . | . . . . . . . Robots Melted . | . . . . . . . Combat Hostiles . | . . . . . . . Parts Melted . | . . . . . . . Heat Transferred 150 | . . . . 150 . . Parts Sabotaged . | . . . . . . . Parts Stolen . | . . . . . . . Parts Stripped . | . . . . . . . Power Chain Reactions . | . . . . . . . Alert | -11 -10 -10 -10 -9 -8 -8 ------- Run | Yrd Mat Min Exi Min Mat Gar Peak Influence 407 | . 407 333 . 174 245 264 Initial 159 | . . 123 . . 67 159 Average 172 | . 220 206 . 56 222 208 Maximum Alert Level 2 | . 2 1 . . 1 1 Low Security (%) 47 | 100 25 44 . 100 13 23 Level 1 48 | . 63 55 . . 86 76 Level 2 3 | . 11 . . . . . Level 3 . | . . . . . . . Level 4 . | . . . . . . . Level 5 . | . . . . . . . High Security . | . . . . . . . Max Security . | . . . . . . . Squads Dispatched 4 | . 4 . . . . . Investigation 1 | . 1 . . . . . Extermination . | . . . . . . . Reinforcement 3 | . 3 . . . . . Assault . | . . . . . . . Garrison . | . . . . . . . Intercept . | . . . . . . . Searches Triggered . | . . . . . . . Construction Impeded . | . . . . . . . Haulers Reinforced . | . . . . . . . Active Scanning Responses . | . . . . . . . Cargo Convoy Interrupts . | . . . . . . . Stealth | -11 -10 -10 -10 -9 -8 -8 --------- Run | Yrd Mat Min Exi Min Mat Gar Distress Signals 2 | . 1 . . . 1 . Communications Jammed . | . . . . . . . Distress Signals . | . . . . . . . Times Spotted 75 | . 23 10 . 27 8 7 Peak Tracking Total 17 | . 5 3 . 17 5 3 Tactical Retreats 3 | . 1 . . 1 . 1 Traps | -11 -10 -10 -10 -9 -8 -8 ------- Run | Yrd Mat Min Exi Min Mat Gar Traps Triggered 4 | . 3 . . . . 1 Indirectly . | . . . . . . . Trap Hack Attempts . | . . . . . . . Triggered . | . . . . . . . Disarmed . | . . . . . . . Reprogrammed . | . . . . . . . Reused . | . . . . . . . Traps Extracted . | . . . . . . . Installed . | . . . . . . . Triggered . | . . . . . . . Machines | -11 -10 -10 -10 -9 -8 -8 ---------- Run | Yrd Mat Min Exi Min Mat Gar Machines Disabled 5 | . . . . 3 2 . Max in Single Turn 3 | . . . . 3 1 . Machines Repaired . | . . . . . . . Machines Dismantled . | . . . . . . . Machines Sabotaged . | . . . . . . . Overloaded Fab Kills . | . . . . . . . Hacking | -11 -10 -10 -10 -9 -8 -8 --------- Run | Yrd Mat Min Exi Min Mat Gar Machines Accessed 8 | . 5 . 1 . 2 . Terminals 6 | . 5 . . . 1 . Fabricators . | . . . . . . . Repair Stations . | . . . . . . . Recycling Units . | . . . . . . . Scanalyzers . | . . . . . . . Garrison Access 1 | . . . . . 1 . Total Hacks 12 | . 9 . 1 . 2 . Successful 11 | . 8 . 1 . 2 . Failed 1 | . 1 . . . . . Catastrophic . | . . . . . . . Database Lockouts . | . . . . . . . Manual . | . . . . . . . Terminals 10 | . 9 . . . 1 . Fabricators . | . . . . . . . Repair Stations . | . . . . . . . Recycling Units . | . . . . . . . Scanalyzers . | . . . . . . . Garrison Access 1 | . . . . . 1 . Terminal Hacks 10 | . 8 . 1 . 1 . Record 2 | . . . 1 . 1 . Alert Level 2 | . 2 . . . . . Dispatch Records 2 | . 2 . . . . . Registered Components 1 | . 1 . . . . . Zone Layout 3 | . 3 . . . . . Fabricator Hacks . | . . . . . . . Repair Station Hacks . | . . . . . . . Recycling Unit Hacks . | . . . . . . . Scanalyzer . | . . . . . . . Garrison Access Hacks 1 | . . . . . 1 . Unlock Access 1 | . . . . . 1 . Unauthorized Hacks . | . . . . . . . Terminals . | . . . . . . . Fabricators . | . . . . . . . Repair Stations . | . . . . . . . Recycling Units . | . . . . . . . Scanalyzers . | . . . . . . . Garrison Access . | . . . . . . . Data Cores Recovered . | . . . . . . . Used . | . . . . . . . Hacking Detections 3 | . 2 . . . 1 . Full Trace Events . | . . . . . . . Feedback Events . | . . . . . . . Feedback Blocked . | . . . . . . . Robot Schematics Acquired . | . . . . . . . Robots Built . | . . . . . . . Authchips . | . . . . . . . Time . | . . . . . . . Total Robot Build Rating . | . . . . . . . Part Schematics Acquired . | . . . . . . . Parts Built . | . . . . . . . Authchips . | . . . . . . . Time . | . . . . . . . Total Part Build Rating . | . . . . . . . Parts Repaired . | . . . . . . . Time . | . . . . . . . Parts Recycled . | . . . . . . . Recycled Matter . | . . . . . . . Retrieved Matter . | . . . . . . . Retrieved Components . | . . . . . . . Parts Scanalyzed . | . . . . . . . Part Schematics Acquired . | . . . . . . . Parts Damaged . | . . . . . . . Bothacking | -11 -10 -10 -10 -9 -8 -8 ------------ Run | Yrd Mat Min Exi Min Mat Gar Used RIF Installer . | . . . . . . . Robots Hacked . | . . . . . . . Non-combat . | . . . . . . . Combat . | . . . . . . . Robot Hacks Applied . | . . . . . . . Relay Couplers Released . | . . . . . . . Fabnet Peak Effective % . | . . . . . . . Robots Rewired . | . . . . . . . Allies Hacked . | . . . . . . . Hacks Repelled . | . . . . . . . Allies | -11 -10 -10 -10 -9 -8 -8 -------- Run | Yrd Mat Min Exi Min Mat Gar Total Allies 1 | . . 1 . . . . Largest Group 1 | . . 1 1 . . . Highest-Rated Group 31 | . . 31 31 . . . Highest-Rated Ally 31 | . . 31 31 . . . Total Orders . | . . . . . . . Ally Attacks . | . . . . . . . Total Damage . | . . . . . . . Kills . | . . . . . . . Allies Corrupted . | . . . . . . . Allies Melted . | . . . . . . . Intel | -11 -10 -10 -10 -9 -8 -8 ------- Run | Yrd Mat Min Exi Min Mat Gar Robot Analysis Total . | . . . . . . . Derelict Logs Recovered 4 | . . 2 . 2 . . Drone Launches . | . . . . . . . Drone Recoveries . | . . . . . . . Exploration | -11 -10 -10 -10 -9 -8 -8 ------------- Run | Yrd Mat Min Exi Min Mat Gar Turns Passed 2739 | 44 794 520 340 593 209 239 Spaces Moved 1892 | 34 515 355 284 429 156 119 Core 5 | 5 . . . . . . Treads . | . . . . . . . Legs 1887 | 29 515 355 284 429 156 119 Wheels . | . . . . . . . Hover . | . . . . . . . Flight . | . . . . . . . Fastest Speed 50 | 50 120 120 120 120 120 120 Average Speed 119 | 109 120 120 120 120 120 120 Slowest Speed 120 | 120 120 120 120 120 120 120 Overloaded Moves . | . . . . . . . Propulsion Burnouts . | . . . . . . . Robots Hopped . | . . . . . . . Cave-ins Triggered . | . . . . . . . Exploration Rate (%) 51 | 3 81 65 73 95 22 19 Regions Visited 6 Branch Regions 3 Pre-discovered Areas 3 | . . . 1 2 . . Known Exits Taken 1 | . . . . . 1 . Unknown Exits Taken 5 | 1 1 1 1 1 . . Scrap Searched 2 | . . 1 . 1 . . Spaces Dug . | . . . . . . . Terrain Destroyed 113 | . . . . 92 21 . Melee . | . . . . . . . Projectile . | . . . . . . . AOE 113 | . . . . 92 21 . Terrain Rammed . | . . . . . . . Walls Destroyed . | . . . . . . . Machines Disabled . | . . . . . . . Actions | -11 -10 -10 -10 -9 -8 -8 --------- Run | Yrd Mat Min Exi Min Mat Gar Total 2155 | 38 608 402 283 461 170 193 Wait 77 | . 16 11 . . . 50 Move 1886 | 33 514 354 283 428 155 119 Hop . | . . . . . . . Pick Up 5 | . . . . 2 3 . Fast Attach 8 | 5 1 . . . 2 . Attach 3 | . . . . 1 2 . Detach . | . . . . . . . Swap 5 | . 2 . . . . 3 Drop 9 | . 2 . . 1 3 3 Fire 124 | . 46 26 . 29 5 18 Melee . | . . . . . . . Ram . | . . . . . . . Kick 4 | . 3 1 . . . . Crush . | . . . . . . . Escape Stasis . | . . . . . . . Rewire . | . . . . . . . Trap . | . . . . . . . Miscellaneous 34 | . 24 10 . . . . Route ------- -11/Scrapyard -10/Materials (discovered 4 exits: *Mat x2 / [*Min x2]) -10/Mines (discovered 3 exits: *Mat x2 / *Exi) -10/Exiles (discovered 2 exits: [*Min x2]) -9/Mines (discovered 2 exits: *Mat x2) -8/Materials (discovered 2 exits: Fac / Gar) -8/Garrison History --------- Turn | Location | Event 7 | -11/Scrapyard | Upgraded with Propulsion slot (x1) 7 | -11/Scrapyard | Upgraded with Weapon slot (x1) 10 | -11/Scrapyard | Discovered new exit (range 16) 45 | -11/Scrapyard | Entered Materials 93 | -10/Materials | Discovered new exit (range 16) 297 | -10/Materials | Discovered new exit (range 16) 312 | -10/Materials | Build established: Mutant 317 | -10/Materials | Reached level 2 441 | -10/Materials | Discovered new exit (range 9) 520 | -10/Materials | Discovered new exit (range 16) 624 | -10/Materials | Build established: Hacker-Mutant 839 | -10/Materials | Entered Mines 845 | -10/Mines | Discovered new exit (range 12) 855 | -10/Mines | Joined a pair of Derelicts in attacking an 0b10 outpost 919 | -10/Mines | Found a hidden stash of uninstalled traps 949 | -10/Mines | Reached level 3 1037 | -10/Mines | Learned location of 1 exit from Materials 1172 | -10/Mines | Identified exit to Materials 1302 | -10/Mines | Received a Mining Laser from a helpful Derelict 1311 | -10/Mines | Deemed a non-threat by the Exiles lab entrance 1311 | -10/Mines | Discovered new exit (range 5) 1359 | -10/Mines | Entered Exiles 1359 | -10/Exiles | Accompanied by 1 ally 1377 | -10/Exiles | Discovered new exit (range 15) 1391 | -10/Exiles | Met 8R-AWN 1416 | -10/Exiles | Met EX-HEX 1476 | -10/Exiles | Met EX-DEC 1510 | -10/Exiles | Visited The Gauntlet 1653 | -10/Exiles | Learned location of Zion (-6) 1689 | -10/Exiles | Discovered new exit (range 10) 1699 | -10/Exiles | Entered Mines 1753 | -9/Mines | Reached level 4 1886 | -9/Mines | Learned location of Storage (-8) 1908 | -9/Mines | Received a Rocket Launcher from a helpful Derelict 2032 | -9/Mines | Discovered new exit (range 11) 2088 | -9/Mines | Assembled infested the area 2133 | -9/Mines | Core integrity fell below 50% 2182 | -9/Mines | Destroyed 7 combat bots 2270 | -9/Mines | Discovered new exit (range 9) 2279 | -9/Mines | Core integrity fell below 20% 2292 | -9/Mines | Entered Materials 2293 | -8/Materials | Identified exit to Factory 2293 | -8/Materials | Core integrity fell below 50% 2293 | -8/Materials | Core integrity fell below 20% 2294 | -8/Materials | Reached level 5 2500 | -8/Materials | Identified exit to Garrison 2501 | -8/Materials | Entered Garrison 2501 | -8/Garrison | Reached level 6 2501 | -8/Garrison | Upgraded with Weapon slot (x1) 2529 | -8/Garrison | Triggered checkpoint 2740 | -8/Garrison | Destroyed by G-47 Trooper with Particle Gun Last Messages --------------- G-47 Trooper destroyed. Switching to secondary target: G-47 Trooper. G-47 Trooper suffers critical hit (Destroy). G-47 Trooper destroyed. Acquired 99 matter. Dropped Aluminum Leg. Acquired 10 matter. Dropped Broken Ion Engine. Dropped Aluminum Leg. Acquired 20 matter. ALERT: Dispatching investigation squad to Materials. Triggered Alarm Trap. An alarm sounds. Connecting with Garrison Terminal... G-47 Trooper destroyed. Aluminum Leg severed. L-31 Rogue destroyed. Switching to secondary target: G-47 Trooper. G-47 Trooper destroyed. Critical hit (Burn: +37). Map ----- +----------------------------------------------------+ | ???????????????????????# "#?????????????????????? | | ???????????????????????# "#?????????????????????? | | ???????????????????????# #"#?????????????????????? | | ???????????????????????# ###?????????????????????? | | ???????????????????????# #???????????????????????? | | ???????????????????????# #???????????????????????? | | ???????????????????????# #???????????????????????? | | ?????????????????????### #???????????????????????? | | ???#####?????????????# [ #???????????????????????? | | ???# #?????????????#=%%#???????????????????????? | | ???# ###########???# * #???????????????????????? | | ???# #???###%#???????????????????????? | | ???# #?????#=#???????????????????????? | | ???############ ####### #???????????????????????? | | ??????????????# #???????????????????????? | | ??????????????# #########???????????????????????? | | ??????????????# #???????????????????????????????? | | ??????????????# #???????????????????????????????? | | ??????????????# #???????????????????????????????? | | ??????????????# #???????????????????????????????? | | ??????????????# #???????????????????????????????? | | #######???????# #???????????????????????????????? | | # ######### #???????????????????????????????? | | # #???????????????????????????????? | | # # ######## #??????######""""###????????????? | | # ## #??????# ########@% %%= #?????????? | | ##?#####??????# *%%[ ^ ????????? | | ??????????????# ! ????????? | | ??????????????########### ## ## #?????????? | | ????????????????????????# #?? #??????????????? | | ????????????????????????" ??? ?????????????? | | ????????????????????????" ?? ???????????? | | ????????????????????????" ?? ??????????? | | ????????????????????????" ??????????????? | | ????????????????????????? g ## #??????????????? | | ????????????????????????? #? #??????????????? | | ????????????????????????? ?? ??????????????? | | ????????????????????????? ?? ?????????????? | | ????????????????????????? ?? ???????????????? | | ?????????????????????????#+###???????????????????? | | ?????????????????????????? ??????????????????????? | | ?????????????????????????????????????????????????? | | ?????????????????????????????????????????????????? | | ?????????????????????????????????????????????????? | | ?????????????????????????????????????????????????? | | ?????????????????????????????????????????????????? | | ?????????????????????????????????????????????????? | | ?????????????????????????????????????????????????? | | ?????????????????????????????????????????????????? | | ?????????????????????????????????????????????????? | +----------------------------------------------------+ Best States ------------- Heat Dissipation 55 Energy Generation 14 Energy Capacity 250 Matter Stores 400 Matter Capacity 400 Sight Range 16 Terrain Scan Density 10 Resistance: KI 5 Resistance: TH 5 Resistance: EX 10 Evasion (%) 55 Targeting Accuracy 5 Offensive Hacking 25 Defensive Hacking 15 Item Schematics ----------------- None Robot Schematics ------------------ None Fabricated ------------ Nothing Alien Tech Used ----------------- None Achievements -------------- Let's See Who's Tougher Challenges ------------ None RPGLIKE | -11 -10 -10 -10 -9 -8 -8 --------- Run | Yrd Mat Min Exi Min Mat Gar Levels Raised 5 | . 1 1 . 1 1 1 XP Earned 11649 | 3000 2139 1550 200 1475 2135 1150 XP Spent 10435 | 2805 1650 1350 . 1655 1500 1475 Upgrades 41 | 14 6 8 . 4 3 6 Propulsion Slot 1 | 1 . . . . . . Weapon Slot 2 | 1 . . . . . 1 Core Integrity 14 | 8 . . . 1 . 5 Heat Dissipation 5 | . . 5 . . . . Matter Storage 2 | 2 . . . . . . Inventory Capacity 1 | . . . . 1 . . Ranged Accuracy 4 | 2 . . . 2 . . Hack Attack % 3 | . 3 . . . . . Hack Defense % 3 | . . . . . 3 . KI Resistance % 1 | . 1 . . . . . TH Resistance % 1 | . 1 . . . . . EX Resistance % 2 | . 1 1 . . . . KI Damage % 2 | . . 2 . . . . Protomatter Created 284 | . 236 23 . 24 1 . Integrity Restored 674 | . 477 197 . . . . Core 573 | . 476 97 . . . . Parts 101 | . 1 100 . . . . Protomatter Decayed 58 | . 47 . . 11 . . Game ------ Seed TitaniumImpactBooster Manual? 0 Play Time 00:24:39 Cumulative 30.6 hours Start 2024.11.22 @ 00:30:32 End 2024.11.22 @ 00:54:01 Sessions 1 Manual Loads 0 Difficulty Rogue Special Mode Winter2019/RPGLIKE Game No. 49 Rogue 49 Adventurer 0 Explorer 0 Win Type - Total 0 Types 0/0/0/0/0/0/0/0/0 Lore% 7 Gallery% 22 Achievement% 25 Wizard Run 0 Options --------- Layout 0 ASCII 0 Keyboard 0 Movement Mouse Keybinds 0 Fullscreen 1 Font 18/SmallcapsGlow Map View 38x25 Zoom Use 99% Tactical HUD 0 Map Filters NONE Filters NONE Steam 1 RUN: 2fc300c6-7a79-4522-81d6-35e6134d89c0